bitfinex/quotes_BTCUSD_20220120
["timestamp","ask_amount","ask_price","bid_price","bid_amount"]
[1642718234300,0.001,41288.0,41286.0,0.12114706]
[1642718234500,0.001,41288.0,41286.0,0.060574]
[1642718234900,0.77922918,41292.0,41286.0,0.12114786]
[1642718235103,0.009405,41291.0,41286.0,0.12114786]
[1642718235301,0.62420662,41291.0,41286.0,0.12114786]
[1642718235500,0.009405,41291.0,41286.0,0.12114786]
[1642718235700,0.61480162,41290.0,41286.0,0.12114786]
[1642718236301,0.67637762,41290.0,41286.0,0.12114786]
[1642718236501,0.61480162,41288.0,41287.0,0.060574]
[1642718236848,0.61480162,41289.0,41286.0,0.06057249]
[1642718237047,0.61480162,41288.0,41286.0,0.06057249]
[1642718237547,0.61480162,41287.0,41286.0,0.06057249]
[1642718237753,0.060576,41290.0,41286.0,0.31595911]
[1642718237949,1.83711501,41299.0,41286.0,0.31595911]
[1642718237950,0.61480162,41292.0,41290.0,0.00121459]
[1642718238149,0.009405,41291.0,41290.0,0.00121459]
[1642718238349,0.001,41290.0,41289.0,0.121136]
[1642718238950,0.001,41290.0,41289.0,0.331697]
[1642718239149,0.001,41290.0,41289.0,0.431697]
[1642718239349,0.001,41290.0,41289.0,0.581697]
[1642718239549,0.61480162,41295.0,41289.0,1.18409388]
[1642718239749,0.61480162,41295.0,41289.0,0.79789688]
[1642718239949,0.61480162,41295.0,41290.0,0.060559]
[1642718240354,0.61580162,41295.0,41290.0,0.060559]
[1642718240607,0.001,41295.0,41290.0,0.171118]
[1642718240799,0.001,41295.0,41291.0,1.28]
[1642718241000,0.001,41295.0,41292.0,0.26334177]
[1642718241399,0.001,41295.0,41292.0,1.54334177]
[1642718241601,0.00113703,41296.0,41293.0,1.48]
[1642718241801,0.00113703,41296.0,41295.0,1.63]
[1642718242001,0.00113703,41296.0,41295.0,1.81742002]
[1642718242301,0.00112944,41298.0,41295.0,2.11742002]
[1642718242505,0.00112944,41298.0,41297.0,1.69182912]
[1642718242704,0.00112944,41298.0,41297.0,2.13862612]
[1642718242904,9.44e-06,41298.0,41297.0,2.03862612]
[1642718243302,0.44749139,41299.0,41297.0,2.15969812]
[1642718243500,0.44749139,41299.0,41298.0,1.05347827]
[1642718243703,0.44749139,41299.0,41298.0,2.39407827]
[1642718243900,0.44749139,41299.0,41298.0,2.54407827]
[1642718244362,0.44749139,41299.0,41298.0,2.75683805]
[1642718244665,0.61480162,41309.0,41303.0,0.12228586]
[1642718244864,0.61480162,41309.0,41304.0,0.25849045]
[1642718245063,0.12327206,41308.0,41304.0,0.25849045]
[1642718245271,0.12327206,41308.0,41305.0,1.48]
[1642718245469,0.61502075,41312.0,41308.0,1.28]
[1642718245664,0.61480162,41313.0,41309.0,1.5196014]
[1642718245864,0.12326442,41311.0,41309.0,1.7196014]
[1642718246063,0.61480162,41314.0,41311.0,1.63]
[1642718246064,0.12348355,41312.0,41311.0,1.63]
[1642718246264,0.12326442,41312.0,41311.0,2.166197]
[1642718246467,0.12326442,41313.0,41311.0,2.437234]
[1642718246665,0.53806604,41318.0,41314.0,0.2]
[1642718246866,0.71596795,41321.0,41317.0,0.00120021]
[1642718247065,0.00010942,41319.0,41315.0,0.48993328]
[1642718247264,0.71596795,41321.0,41316.0,0.0487823]
[1642718247463,0.00010942,41320.0,41316.0,0.0487823]
[1642718247664,0.71596795,41321.0,41318.0,0.00129422]
[1642718247866,0.00951442,41320.0,41319.0,0.060517]
[1642718248113,0.71596795,41323.0,41319.0,0.060517]
[1642718248311,0.00131466,41322.0,41319.0,0.061517]
[1642718248511,0.00120524,41322.0,41319.0,0.061517]
[1642718249311,0.00010942,41323.0,41319.0,0.061517]
[1642718249613,0.00110828,41323.0,41319.0,0.29887848]
[1642718249812,0.0012177,41323.0,41319.0,0.29887848]
[1642718250011,0.00110828,41323.0,41319.0,0.060517]
[1642718250211,0.00110828,41323.0,41318.0,0.15]
[1642718250212,0.00110828,41323.0,41320.0,0.29883564]
[1642718250414,0.0012177,41323.0,41320.0,0.29883564]
[1642718250719,0.06163227,41324.0,41320.0,0.060521]
[1642718251111,0.06174169,41324.0,41320.0,0.060521]
[1642718251312,0.06163227,41324.0,41320.0,0.060521]
[1642718251844,0.00010942,41325.0,41320.0,0.060521]
[1642718252044,0.00110827,41324.0,41320.0,0.060521]
[1642718252446,0.00110827,41324.0,41320.0,0.001]
[1642718252645,0.00121769,41324.0,41320.0,0.001]
[1642718252848,0.00110827,41324.0,41320.0,0.001]
[1642718253046,0.060526,41323.0,41320.0,0.001]
[1642718253747,0.060526,41323.0,41318.0,0.39281504]
[1642718253946,0.060526,41323.0,41318.0,0.39353733]
[1642718253947,0.06063542,41323.0,41318.0,0.39353733]
[1642718254148,0.06063542,41323.0,41320.0,0.060526]
[1642718254447,0.00113614,41323.0,41320.0,0.060526]
[1642718255447,0.00010942,41326.0,41320.0,0.060526]
[1642718255700,0.00124554,41324.0,41320.0,0.060526]
[1642718255901,0.00113612,41324.0,41320.0,0.060526]
[1642718256099,0.00124554,41324.0,41320.0,0.060526]
[1642718256298,0.00113612,41324.0,41320.0,0.060526]
[1642718256498,0.00010942,41326.0,41320.0,0.061526]
[1642718256698,0.00123782,41324.0,41320.0,0.061526]
[1642718256898,0.0011284,41324.0,41320.0,0.061526]
[1642718257198,0.0011284,41324.0,41320.0,0.044133]
[1642718257600,0.06176382,41324.0,41320.0,0.043133]
[1642718257800,0.06176382,41324.0,41318.0,0.23698987]
[1642718257801,0.060526,41324.0,41318.0,0.23698987]
[1642718258000,0.0616544,41324.0,41318.0,0.23698987]
[1642718258202,0.06176382,41324.0,41318.0,0.23698987]
[1642718258405,0.06176382,41324.0,41318.0,0.23898987]
[1642718258601,0.0616544,41324.0,41318.0,0.002]
[1642718258801,0.8334418,41335.0,41318.0,0.002]
[1642718258802,0.95993494,41337.0,41319.0,0.360529]
[1642718259002,0.16452726,41334.0,41320.0,0.2775125]
[1642718259349,0.00021879,41335.0,41320.0,0.2775125]
[1642718259553,0.00962379,41334.0,41320.0,0.3275125]
[1642718259749,0.00021879,41334.0,41320.0,0.3275125]
[1642718260048,0.00021879,41335.0,41321.0,0.060526]
[1642718260249,1.18236074,41336.0,41321.0,0.060526]
[1642718260451,0.121057,41331.0,41321.0,0.060526]
[1642718262151,0.120057,41331.0,41321.0,0.060526]
[1642718262351,0.120057,41331.0,41321.0,0.062526]
[1642718262751,0.00113052,41328.0,41321.0,0.062526]
[1642718262950,0.060523,41327.0,41321.0,0.062526]
[1642718263601,0.060523,41327.0,41321.0,0.060526]
[1642718263999,0.00112896,41326.0,41321.0,0.060526]
[1642718264203,0.060524,41325.0,41321.0,0.060526]
[1642718264399,0.060524,41325.0,41321.0,0.063526]
[1642718265601,0.060524,41325.0,41321.0,0.060526]
[1642718266503,0.060524,41325.0,41321.0,0.002]
[1642718267657,0.060524,41325.0,41320.0,0.060526]
[1642718268458,0.060524,41325.0,41320.0,0.068526]
[1642718269560,0.060524,41325.0,41320.0,0.168526]
[1642718269758,0.060524,41325.0,41320.0,0.160526]
[1642718270601,0.00112938,41326.0,41320.0,0.167526]
[1642718271000,0.00010939,41326.0,41320.0,0.167526]
[1642718271200,0.00123877,41326.0,41320.0,0.167526]
[1642718271403,0.00112938,41326.0,41321.0,0.06052]
[1642718271600,0.060522,41326.0,41321.0,0.26052]
[1642718271802,0.060522,41326.0,41321.0,0.25552]
[1642718272102,0.121039,41331.0,41321.0,0.25552]
[1642718272501,0.121039,41331.0,41321.0,0.26252]
[1642718273102,0.060519,41328.0,41321.0,0.26252]
[1642718273704,0.060519,41328.0,41321.0,0.25552]
[1642718274356,0.060519,41328.0,41321.0,0.4971683]
[1642718274554,0.060519,41328.0,41321.0,0.6041683]
[1642718274756,0.060519,41328.0,41321.0,0.16252]
[1642718274757,0.06121139,41328.0,41321.0,0.16252]
[1642718274957,0.06173228,41326.0,41321.0,0.107]
[1642718275358,0.00120328,41326.0,41321.0,0.107]
[1642718275557,0.00120328,41326.0,41321.0,0.007]
[1642718275956,0.121058,41327.0,41321.0,0.00788242]
[1642718276155,0.060524,41325.0,41321.0,0.00788242]
[1642718276355,0.060524,41325.0,41321.0,0.00088242]
[1642718276557,0.060524,41325.0,41321.0,0.00288242]
[1642718276757,0.060524,41325.0,41289.0,0.71339306]
[1642718276959,20.10224033,41310.0,41309.0,1.21158184]
[1642718277159,20.10224033,41310.0,41309.0,1.52208184]
[1642718277359,20.10224033,41310.0,41309.0,1.53418184]
[1642718278200,20.10224033,41310.0,41309.0,1.63418184]
[1642718278401,20.10224033,41310.0,41309.0,1.52214584]
[1642718279702,20.10224033,41310.0,41309.0,1.52281984]
[1642718279903,20.10175588,41310.0,41309.0,1.51314584]
[1642718280603,20.10175588,41310.0,41309.0,1.52314584]
[1642718281858,20.10175588,41310.0,41309.0,1.51314584]
[1642718282056,20.10175588,41310.0,41309.0,1.71314584]
[1642718282253,20.10175588,41310.0,41309.0,1.51314584]
[1642718282453,20.10175588,41310.0,41309.0,1.52314584]
[1642718283454,20.10175588,41310.0,41309.0,1.53281884]
[1642718283655,20.10175588,41310.0,41309.0,1.52281884]
[1642718283856,20.10175588,41310.0,41309.0,1.51314584]
[1642718284457,20.10175588,41310.0,41309.0,1.51714584]
[1642718285707,20.10175588,41310.0,41309.0,1.51314584]
[1642718286308,20.10175588,41310.0,41309.0,1.50814584]
[1642718286506,20.10175588,41310.0,41309.0,1.51114584]
[1642718287009,20.10175588,41310.0,41309.0,0.23114584]
[1642718287808,20.10175588,41310.0,41309.0,0.1121]
[1642718288409,20.10175588,41310.0,41309.0,0.0621]
[1642718288609,20.10175588,41310.0,41309.0,0.6312589]
[1642718288809,20.10175588,41310.0,41309.0,0.5812589]
[1642718289853,20.10175588,41310.0,41309.0,0.5762589]
[1642718290656,20.10175588,41310.0,41309.0,0.5802589]
[1642718291857,19.56955202,41310.0,41309.0,0.7762589]
[1642718292057,19.56955202,41310.0,41309.0,0.5762589]
[1642718292760,19.56955202,41310.0,41309.0,0.5802589]
[1642718293802,19.56955202,41310.0,41309.0,0.5762589]
[1642718294601,19.56955202,41310.0,41309.0,0.5802589]
[1642718294808,19.56955202,41310.0,41309.0,0.6802589]
[1642718295805,19.56955202,41310.0,41309.0,0.6762589]
[1642718296203,19.56955202,41310.0,41309.0,0.7262589]
[1642718296605,19.56955202,41310.0,41309.0,0.7292589]
[1642718297457,19.56955202,41310.0,41309.0,0.6792589]
[1642718297754,19.56955202,41310.0,41309.0,0.6641589]
[1642718297951,19.56955202,41310.0,41309.0,0.7262589]
[1642718298753,19.56955202,41310.0,41309.0,0.7302589]
[1642718299753,19.56955202,41310.0,41309.0,0.7262589]
[1642718300703,19.56955202,41310.0,41309.0,0.6681589]
[1642718300902,19.56955202,41310.0,41309.0,0.7181589]
[1642718301103,19.56955202,41310.0,41309.0,0.6681589]
[1642718301303,19.56955202,41310.0,41309.0,0.7302589]
[1642718301703,19.56955202,41310.0,41309.0,0.6802589]
[1642718301903,19.56955202,41310.0,41309.0,0.6762589]
[1642718302505,19.56955202,41310.0,41309.0,0.6802589]
[1642718303206,19.56955202,41310.0,41309.0,0.6681589]
[1642718303805,19.56955202,41310.0,41309.0,0.6641589]
[1642718304206,20.06285202,41310.0,41309.0,0.6762589]
[1642718304649,20.06285202,41310.0,41309.0,0.6792589]
[1642718306554,20.05885202,41310.0,41309.0,0.6792589]
[1642718306953,20.05385202,41310.0,41309.0,0.6792589]
[1642718307958,20.05385202,41310.0,41309.0,0.6762589]
[1642718308607,20.05385202,41310.0,41309.0,0.6802589]
[1642718309509,20.05385202,41310.0,41309.0,0.7302589]
[1642718309709,20.05385202,41310.0,41309.0,0.7262589]
[1642718310612,20.05385202,41310.0,41309.0,0.7392589]
[1642718312560,20.05385202,41310.0,41309.0,0.7382589]
[1642718312764,20.05385202,41310.0,41309.0,2.0182589]
[1642718313761,20.05385202,41310.0,41309.0,2.0162589]
[1642718314563,20.05385202,41310.0,41309.0,2.0182589]
[1642718315363,20.05385202,41310.0,41309.0,0.7382589]
[1642718316014,20.05385202,41310.0,41309.0,0.7362589]
[1642718316210,20.05357817,41310.0,41309.0,0.8162589]
[1642718316511,20.05357817,41310.0,41309.0,2.0962589]
[1642718316710,20.05357817,41310.0,41309.0,0.8182589]
[1642718317110,20.0486396,41310.0,41309.0,0.8182589]
[1642718317712,20.0486396,41310.0,41309.0,2.0982589]
[1642718318013,20.0486396,41310.0,41309.0,2.0962589]
[1642718318210,20.0486396,41310.0,41309.0,0.8162589]
[1642718318411,20.0486396,41310.0,41309.0,2.0962589]
[1642718318614,20.0486396,41310.0,41309.0,2.1002589]
[1642718319855,20.0486396,41310.0,41309.0,2.0962589]
[1642718320656,20.0486396,41310.0,41309.0,2.1002589]
[1642718321856,20.0486396,41310.0,41309.0,2.0962589]
[1642718322659,20.0486396,41310.0,41309.0,2.1002589]
[1642718324517,20.0486396,41310.0,41309.0,2.0962589]
[1642718324717,20.04549257,41310.0,41309.0,2.1002589]
[1642718324920,20.04549257,41310.0,41309.0,2.0502589]
[1642718325918,20.04549257,41310.0,41309.0,2.0462589]
[1642718326119,20.04357857,41310.0,41309.0,2.0462589]
[1642718326621,20.04357857,41310.0,41309.0,2.0502589]
[1642718327862,20.04357857,41310.0,41309.0,2.0462589]
[1642718328660,20.04357857,41310.0,41309.0,2.0522589]
[1642718330061,20.04357857,41310.0,41309.0,2.0962589]
[1642718330262,20.04357857,41310.0,41309.0,2.1059319]
[1642718330714,20.04357857,41310.0,41309.0,2.1119319]
[1642718331913,20.04357857,41310.0,41309.0,2.1059319]
[1642718332814,20.04357857,41310.0,41309.0,2.1099319]
[1642718333815,20.04357857,41310.0,41309.0,2.1059319]
[1642718334659,20.04357857,41310.0,41309.0,2.1099319]
[1642718335659,20.04357857,41310.0,41309.0,2.1002589]
[1642718335860,20.04357857,41310.0,41309.0,2.0962589]
[1642718336060,20.04357857,41310.0,41309.0,2.2962589]
[1642718336659,20.04357857,41310.0,41309.0,2.3002589]
[1642718337962,20.04357857,41310.0,41309.0,2.3059319]
[1642718338405,20.04357857,41310.0,41309.0,2.2962589]
[1642718338806,0.4933,41310.0,41309.0,2.3002589]
[1642718340005,0.4933,41310.0,41309.0,2.2962589]
[1642718340406,0.00917,41310.0,41309.0,2.2962589]
[1642718340804,0.00097979,41314.0,41309.0,2.3022589]
[1642718341005,0.00097979,41314.0,41313.0,1.540518]
[1642718341205,0.00097979,41314.0,41313.0,1.552618]
[1642718341407,0.00097979,41314.0,41313.0,1.702618]
[1642718341605,0.00097979,41314.0,41313.0,1.502618]
[1642718341854,19.55027857,41315.0,41313.0,1.502618]
[1642718342160,19.55027857,41315.0,41314.0,1.34051807]
[1642718342562,19.55027857,41315.0,41314.0,1.44051807]
[1642718342756,19.55027857,41315.0,41314.0,1.44451807]
[1642718344156,19.55027857,41315.0,41314.0,1.44051807]
[1642718344758,19.55027857,41315.0,41314.0,1.44351807]
[1642718345810,19.55027857,41315.0,41314.0,1.45319107]
[1642718346011,19.55027857,41315.0,41314.0,1.45019107]
[1642718346910,19.55027857,41315.0,41314.0,1.45319107]
[1642718347911,19.55027857,41315.0,41314.0,1.45019107]
[1642718348715,19.55027857,41315.0,41314.0,1.45319107]
[1642718349960,19.55027857,41315.0,41314.0,1.45019107]
[1642718350756,19.55027857,41315.0,41314.0,1.45519107]
[1642718351957,19.55027857,41315.0,41314.0,1.45019107]
[1642718352758,19.55027857,41315.0,41314.0,1.45719107]
[1642718352958,19.55027857,41315.0,41314.0,1.50719107]
[1642718353408,19.55027857,41315.0,41314.0,1.51929107]
[1642718354008,19.55027857,41315.0,41314.0,1.51229107]
[1642718354410,19.55027857,41315.0,41314.0,1.71229107]
[1642718354814,19.55027857,41315.0,41314.0,1.76929107]
[1642718355611,19.06620657,41315.0,41314.0,1.76929107]
[1642718355811,13.53090657,41315.0,41314.0,1.76929107]
[1642718356013,12.79692357,41315.0,41314.0,1.76229107]
[1642718356211,11.75875763,41315.0,41314.0,1.76229107]
[1642718356415,7.0645327,41315.0,41314.0,3.26358111]
[1642718356612,7.0645327,41315.0,41314.0,3.20848704]
[1642718356613,4.40476739,41315.0,41314.0,3.20848704]
[1642718356874,1.80829203,41315.0,41314.0,3.49194937]
[1642718357074,0.004821,41324.0,41319.0,1.28]
[1642718357276,0.00128862,41343.0,41319.0,1.28]
[1642718357277,1.04146827,41346.0,41324.0,0.2]
[1642718357475,0.00021945,41339.0,41328.0,0.00121125]
[1642718357673,0.28491945,41345.0,41332.0,0.12097198]
[1642718357878,0.28491945,41345.0,41338.0,0.060486]
[1642718358074,0.009405,41344.0,41339.0,1.28]
[1642718358275,0.2847,41345.0,41338.0,0.120972]
[1642718358276,0.00021937,41345.0,41338.0,0.120972]
[1642718358474,0.03550563,41347.0,41338.0,0.120972]
[1642718358677,0.00129738,41344.0,41334.0,0.2]
[1642718358874,0.00129738,41344.0,41338.0,0.002]
[1642718359075,0.009405,41343.0,41338.0,0.002]
[1642718359476,0.00129738,41344.0,41338.0,0.002]
[1642718359876,0.00129738,41344.0,41338.0,0.062489]
[1642718360078,0.00129738,41344.0,41338.0,0.060489]
[1642718360482,0.00129738,41344.0,41338.0,1.340489]
[1642718360711,0.00129738,41344.0,41338.0,1.33891641]
[1642718360917,0.00129738,41344.0,41338.0,0.16091641]
[1642718361114,0.00129738,41344.0,41338.0,0.22122241]
[1642718361312,0.00120515,41343.0,41338.0,0.22122241]
[1642718361512,0.00120515,41343.0,41338.0,0.16073641]
[1642718362112,0.00120515,41343.0,41338.0,0.05873641]
[1642718362313,0.00129738,41344.0,41339.0,0.060487]
[1642718362515,0.00107269,41343.0,41339.0,0.060487]
[1642718362716,0.00107269,41343.0,41336.0,1.28]
[1642718362914,0.00107269,41343.0,41339.0,0.001]
[1642718363315,0.06049,41346.0,41345.0,0.00120067]
[1642718363515,0.290305,41346.0,41341.0,0.060487]
[1642718363714,0.290305,41346.0,41336.0,0.51808936]
[1642718363715,0.27234768,41346.0,41336.0,0.51808936]
[1642718363916,0.25347268,41346.0,41337.0,0.33191664]
[1642718364563,0.31396168,41346.0,41337.0,0.33191664]
[1642718364765,0.25347268,41346.0,41338.0,0.060491]
[1642718365364,0.009405,41345.0,41338.0,0.060491]
[1642718365565,0.25347268,41346.0,41338.0,0.39240764]
[1642718365868,0.25088133,41346.0,41338.0,0.060491]
[1642718366065,0.25088133,41346.0,41338.0,0.160491]
[1642718366666,0.24588133,41346.0,41338.0,0.160491]
[1642718366867,0.24588133,41346.0,41338.0,0.212491]
[1642718367068,0.24588133,41346.0,41341.0,0.060488]
[1642718367267,0.24588133,41346.0,41340.0,0.00095248]
[1642718368117,0.30637133,41346.0,41340.0,2.48e-06]
[1642718368316,0.009405,41345.0,41336.0,0.57]
[1642718368519,0.009405,41345.0,41341.0,2.44e-06]
[1642718368915,0.020405,41345.0,41341.0,2.44e-06]
[1642718369116,0.06178575,41343.0,41327.0,0.00123624]
[1642718369317,0.00125152,41338.0,41323.0,0.121013]
[1642718370216,0.50730834,41341.0,41323.0,0.121013]
[1642718370417,0.2,41341.0,41324.0,0.35326157]
[1642718370617,0.042126,41334.0,41324.0,0.06051]
[1642718370817,0.033386,41334.0,41330.0,0.0005311]
[1642718371855,0.033386,41334.0,41323.0,0.008]
[1642718372055,0.033386,41334.0,41330.0,0.00093599]
[1642718372858,0.004,41334.0,41330.0,0.00593599]
[1642718374057,0.064506,41334.0,41330.0,0.00593599]
[1642718374257,0.064506,41334.0,41330.0,0.005]
[1642718374460,0.004,41334.0,41330.0,0.00593599]
[1642718374658,0.00124654,41339.0,41330.0,0.00093599]
[1642718374859,0.006,41334.0,41330.0,0.00493599]
[1642718375458,0.006,41334.0,41330.0,0.064504]
[1642718375709,0.006,41334.0,41330.0,0.06543999]
[1642718376110,0.00124654,41339.0,41330.0,0.00093599]
[1642718376314,0.060504,41337.0,41330.0,0.00093599]
[1642718376715,0.060504,41337.0,41332.0,0.0016382]
[1642718376911,0.067504,41337.0,41332.0,0.00257411]
[1642718377810,0.067504,41337.0,41332.0,0.0016382]
[1642718378008,0.067504,41337.0,41332.0,0.00257411]
[1642718378210,0.060504,41337.0,41332.0,0.00257411]
[1642718378816,0.060504,41337.0,41332.0,0.00557411]
[1642718379012,0.066504,41337.0,41332.0,0.0046382]
[1642718379216,0.066504,41337.0,41332.0,0.00557411]
[1642718380173,0.066504,41337.0,41332.0,0.0046382]
[1642718380371,0.066504,41337.0,41332.0,0.00557411]
[1642718380775,0.006,41337.0,41332.0,0.00557411]
[1642718380973,0.005,41337.0,41332.0,0.00657411]
[1642718381375,0.005,41337.0,41332.0,0.0056382]
[1642718381573,0.005,41337.0,41332.0,0.00493591]
[1642718382174,1.60124654,41339.0,41332.0,0.00093591]
[1642718382473,0.3,41336.0,41328.0,0.12093691]
[1642718382872,0.3,41336.0,41333.0,0.00093587]
[1642718383106,0.3,41336.0,41333.0,5.87e-06]
[1642718383913,0.3,41336.0,41332.0,0.004]
[1642718384108,0.3,41336.0,41324.0,0.221007]
[1642718384308,0.060505,41334.0,41324.0,0.221007]
[1642718384508,0.060505,41334.0,41326.0,0.060507]
[1642718384707,0.0606147,41334.0,41326.0,0.060507]
[1642718386515,0.060505,41334.0,41328.0,0.00052878]
[1642718387361,0.060505,41334.0,41326.0,0.01]
[1642718387661,0.060505,41334.0,41329.0,0.00091966]
[1642718388065,0.06042194,41334.0,41329.0,0.00091966]
[1642718388666,0.06042194,41334.0,41324.0,0.210503]
[1642718388861,0.06342194,41334.0,41329.0,0.00891964]
[1642718389762,0.06342194,41334.0,41329.0,0.008]
[1642718389964,0.06342194,41334.0,41329.0,0.00891964]
[1642718390163,0.06042194,41334.0,41329.0,0.00091964]
[1642718390912,0.06642194,41334.0,41329.0,0.00591964]
[1642718391111,0.06642194,41334.0,41329.0,0.005]
[1642718391411,0.06642194,41334.0,41329.0,0.00591964]
[1642718392211,0.06042194,41334.0,41328.0,0.060505]
[1642718392413,0.06042194,41334.0,41329.0,0.00103319]
[1642718393112,0.06542194,41334.0,41329.0,0.00503319]
[1642718393513,0.06542194,41334.0,41329.0,0.004]
[1642718393713,0.06542194,41334.0,41329.0,0.00503319]
[1642718394115,0.06042194,41334.0,41329.0,0.00103319]
[1642718394361,0.23660437,41336.0,41329.0,0.00103319]
[1642718394561,0.00010971,41334.0,41328.0,0.060505]
[1642718394761,0.00010971,41334.0,41329.0,0.00103319]
[1642718394962,0.24171408,41336.0,41329.0,0.00503319]
[1642718395164,0.060505,41334.0,41329.0,0.00503319]
[1642718395566,0.06061471,41334.0,41329.0,0.00503319]
[1642718395763,0.06061471,41334.0,41329.0,0.004]
[1642718395964,0.06061471,41334.0,41329.0,0.00503319]
[1642718396164,0.06061471,41334.0,41329.0,0.00103319]
[1642718397065,0.06661471,41334.0,41329.0,0.004]
[1642718397265,0.06661471,41334.0,41329.0,0.00501936]
[1642718398114,0.06661471,41334.0,41329.0,0.00101936]
[1642718398314,0.06061471,41334.0,41326.0,0.06051]
[1642718398515,0.06061471,41334.0,41329.0,0.00069714]
[1642718398913,0.06361471,41334.0,41329.0,0.00069714]
[1642718399114,0.06361471,41334.0,41329.0,7.14e-06]
[1642718399115,0.060515,41332.0,41329.0,7.14e-06]
[1642718399514,0.060515,41332.0,41326.0,0.008]
[1642718400214,0.060515,41332.0,41321.0,0.42]
[1642718400416,0.060515,41332.0,41321.0,0.480514]
[1642718400816,0.060515,41332.0,41321.0,0.42]
[1642718401014,0.060515,41332.0,41321.0,0.439]
[1642718401615,0.060515,41332.0,41321.0,0.499516]
[1642718402065,0.060515,41332.0,41321.0,0.580516]
[1642718402266,0.060515,41332.0,41321.0,0.480516]
[1642718402467,0.060515,41332.0,41321.0,0.580516]
[1642718402968,0.060515,41332.0,41321.0,0.591516]
[1642718402969,0.062515,41332.0,41321.0,0.591516]
[1642718403167,0.41473323,41332.0,41324.0,0.00100273]
[1642718403366,0.062515,41332.0,41324.0,0.00100273]
[1642718403567,0.42037253,41332.0,41324.0,0.00100273]
[1642718404167,0.42037253,41332.0,41321.0,0.42]
[1642718404168,0.062515,41332.0,41321.0,0.42]
[1642718404370,0.4126501,41332.0,41326.0,0.00096418]
[1642718404567,0.060515,41332.0,41326.0,0.00096418]
[1642718404967,0.072515,41332.0,41326.0,0.00096418]
[1642718405369,0.072515,41332.0,41321.0,0.480516]
[1642718405613,0.072515,41332.0,41327.0,0.00096414]
[1642718406212,0.060515,41332.0,41327.0,0.00096414]
[1642718406613,0.060515,41332.0,41327.0,0.00164843]
[1642718406812,0.060515,41332.0,41327.0,0.00261257]
[1642718407017,0.069515,41332.0,41327.0,0.00261257]
[1642718407914,0.069515,41332.0,41327.0,0.00164843]
[1642718408115,0.060515,41332.0,41321.0,0.35264738]
[1642718408916,0.063515,41332.0,41321.0,0.36164738]
[1642718409117,0.053515,41332.0,41321.0,0.42216438]
[1642718409361,0.06052,41329.0,41321.0,0.36164738]
[1642718409958,0.05975335,41329.0,41321.0,0.36164738]
[1642718410158,0.05975335,41329.0,41321.0,0.35264738]
[1642718410959,0.06275335,41329.0,41321.0,0.36064738]
[1642718411160,0.06275335,41329.0,41322.0,0.30727476]
[1642718411361,0.06275335,41329.0,41321.0,0.42116438]
[1642718411560,0.06275335,41329.0,41323.0,0.00090093]
[1642718411761,0.360514,41328.0,41321.0,0.38673132]
[1642718411960,0.360514,41328.0,41321.0,0.36836132]
[1642718412162,0.360514,41328.0,41321.0,0.34999132]
[1642718412359,0.360514,41328.0,41321.0,0.34199132]
[1642718412560,0.360514,41328.0,41321.0,0.31788132]
[1642718412859,0.360514,41328.0,41321.0,0.31552132]
[1642718412860,0.00055637,41327.0,41321.0,0.31552132]
[1642718413117,0.060517,41326.0,41321.0,0.39303832]
[1642718413317,0.060517,41326.0,41321.0,0.33252132]
[1642718414121,0.060517,41326.0,41321.0,0.31552132]
[1642718414722,0.060517,41326.0,41321.0,0.30303637]
[1642718414920,0.063517,41326.0,41321.0,0.29432737]
[1642718416126,0.060517,41326.0,41321.0,0.28232737]
[1642718416423,0.060517,41326.0,41321.0,0.28332876]
[1642718417073,0.06029361,41326.0,41321.0,0.29532876]
[1642718417572,1.66029361,41326.0,41321.0,0.29526832]
[1642718417772,1.66029361,41326.0,41321.0,0.28261026]
[1642718417973,1.66029361,41326.0,41321.0,0.25851026]
[1642718418174,1.65729361,41326.0,41321.0,0.22240026]
[1642718418375,1.65729361,41326.0,41321.0,0.20912026]
[1642718418575,1.65729361,41326.0,41321.0,0.20817931]
[1642718418777,1.65729361,41326.0,41321.0,0.20912026]
[1642718418978,1.65829361,41326.0,41321.0,0.28963826]
[1642718419781,1.65829361,41326.0,41321.0,0.28869731]
[1642718419977,1.65829361,41326.0,41321.0,0.28963826]
[1642718420178,1.65729361,41326.0,41321.0,0.26963826]
[1642718420379,1.65729361,41326.0,41321.0,0.20912026]
[1642718421016,1.66229361,41326.0,41321.0,0.15520531]
[1642718421214,1.66229361,41326.0,41321.0,0.14381645]
[1642718421413,1.66229361,41326.0,41321.0,0.11988645]
[1642718422218,1.65729361,41326.0,41321.0,0.1108892]
[1642718422517,1.65729361,41326.0,41321.0,0.11188645]
[1642718422915,1.66129361,41326.0,41321.0,0.12188645]
[1642718423515,1.66129361,41326.0,41321.0,0.1208892]
[1642718423717,1.66129361,41326.0,41321.0,0.12188645]
[1642718424214,1.65729361,41326.0,41321.0,0.11188645]
[1642718424665,0.012898,41325.0,41321.0,0.1108892]
[1642718424864,0.060521,41324.0,41321.0,0.11187994]
[1642718425066,0.060521,41324.0,41321.0,0.12087994]
[1642718425764,0.060521,41324.0,41321.0,0.1198892]
[1642718426165,0.060521,41324.0,41322.0,8.104e-05]
[1642718426965,0.066521,41324.0,41322.0,0.00808104]
[1642718427767,0.612898,41323.0,41321.0,0.08022158]
[1642718427968,0.612898,41323.0,41321.0,0.05629158]
[1642718428211,0.612898,41323.0,41321.0,0.03413084]
[1642718429011,0.618898,41323.0,41321.0,0.04113084]
[1642718430012,0.60244132,41323.0,41321.0,0.04113084]
[1642718430216,0.59644132,41323.0,41321.0,0.03413084]
[1642718431012,0.60244132,41323.0,41321.0,0.04213084]
[1642718431212,0.60244132,41323.0,41320.0,0.04908648]
[1642718431413,0.60244132,41323.0,41320.0,0.02515648]
[1642718431612,0.60244132,41323.0,41320.0,0.01557648]
[1642718431862,0.60244132,41323.0,41320.0,0.01489532]
[1642718432263,0.59644132,41323.0,41320.0,0.01489532]
[1642718432765,0.59644132,41323.0,41319.0,0.00067266]
[1642718433063,0.60144132,41323.0,41320.0,0.013]
[1642718434266,0.59644132,41323.0,41315.0,0.42]
[1642718434467,0.59644132,41323.0,41319.0,0.00076558]
[1642718434965,0.59644132,41323.0,41319.0,0.02476558]
[1642718435164,0.59744132,41323.0,41319.0,0.02476558]
[1642718435368,0.59744132,41323.0,41319.0,0.024]
[1642718435615,0.59744132,41323.0,41319.0,0.0247695]
[1642718436217,1.5752305,41319.0,41316.0,0.060519]
[1642718437018,1.5752305,41319.0,41316.0,0.105519]
[1642718438420,1.5752305,41319.0,41316.0,0.060519]